bitfinex/quotes_BTCUSD_20250314
["timestamp","ask_amount","ask_price","bid_price","bid_amount"]
[1741936853822,0.33140517,82215.0,82214.0,0.1003733]
[1741936854236,0.31924217,82215.0,82214.0,0.1003733]
[1741936854915,0.33140517,82215.0,82214.0,0.1003733]
[1741936857626,0.31924217,82215.0,82214.0,0.1003733]
[1741936858043,0.56250617,82215.0,82214.0,0.1003733]
[1741936858622,0.57466917,82215.0,82214.0,0.1003733]
[1741936859923,0.31924217,82215.0,82214.0,0.1003733]
[1741936860933,0.33140517,82215.0,82214.0,0.1003733]
[1741936862787,0.31924217,82215.0,82214.0,0.1003733]
[1741936867319,0.33140517,82215.0,82214.0,0.1003733]
[1741936867518,0.31924217,82215.0,82214.0,0.1003733]
[1741936867825,0.33140517,82215.0,82214.0,0.1003733]
[1741936872036,0.01924217,82215.0,82214.0,0.1588363]
[1741936872232,0.0001692,82215.0,82214.0,0.1588363]
[1741936872613,0.0001692,82215.0,82214.0,0.16005252]
[1741936873443,0.0001692,82215.0,82214.0,0.18463679]
[1741936874171,0.0001692,82215.0,82214.0,0.19563679]
[1741936878393,0.0001692,82215.0,82214.0,0.21859923]
[1741936879537,0.4673,82264.0,82236.0,0.01216]
[1741936879841,0.243168,82248.0,82237.0,0.243199]
[1741936880123,0.243168,82248.0,82237.0,0.25283489]
[1741936880422,0.03122616,82242.0,82237.0,0.25283489]
[1741936881318,0.01906716,82242.0,82238.0,0.255352]
[1741936881730,0.01906716,82242.0,82238.0,0.26498765]
[1741936883162,0.02106716,82242.0,82238.0,0.26498765]
[1741936883364,0.01906716,82242.0,82238.0,0.26498765]
[1741936883883,0.02106716,82242.0,82238.0,0.26498765]
[1741936884088,0.02006716,82242.0,82238.0,0.26498765]
[1741936884554,0.02106716,82242.0,82238.0,0.26498765]
[1741936885106,0.02123636,82242.0,82238.0,0.26498765]
[1741936885517,0.02023636,82242.0,82238.0,0.26498765]
[1741936885896,0.26442336,82242.0,82238.0,0.00963565]
[1741936886109,0.26442336,82242.0,82236.0,0.25536]
[1741936886439,0.27658236,82242.0,82237.0,0.00963589]
[1741936886644,0.255348,82241.0,82237.0,0.00963589]
[1741936887246,0.255348,82241.0,82237.0,0.25283389]
[1741936887629,0.02123636,82242.0,82237.0,0.26499289]
[1741936887834,0.02023636,82242.0,82237.0,0.26499289]
[1741936888258,0.02023636,82242.0,82238.0,0.255353]
[1741936888462,0.26342136,82242.0,82238.0,0.255353]
[1741936888690,0.01923636,82242.0,82239.0,0.25282581]
[1741936889206,0.001,82241.0,82239.0,0.00963481]
[1741936889668,0.01923636,82242.0,82239.0,0.00963481]
[1741936890046,0.02023636,82242.0,82239.0,0.00963481]
[1741936890262,0.27558136,82242.0,82239.0,0.00963481]
[1741936890506,0.27658136,82242.0,82239.0,0.00963481]
[1741936891705,0.243189,82241.0,82239.0,0.00963481]
[1741936891900,0.012159,82240.0,82239.0,0.00963481]
[1741936892112,0.243199,82237.0,82234.0,0.0763]
[1741936892313,0.243204,82236.0,82235.0,0.00963579]
[1741936893104,0.012159,82237.0,82235.0,0.00963579]
[1741936893290,0.255357,82238.0,82235.0,0.00963579]
[1741936893663,0.243193,82239.0,82235.0,0.25283979]
[1741936894974,0.2432,82237.0,82235.0,0.00963579]
[1741936895538,0.255359,82237.0,82235.0,0.00963579]
[1741936897034,0.01216,82236.0,82235.0,0.00963579]
[1741936897551,0.01216,82236.0,82235.0,0.00997399]
[1741936899497,0.255427,82216.0,82214.0,0.00920652]
[1741936899669,0.012163,82215.0,82214.0,0.00929127]
[1741936900896,0.22710543,82217.0,82214.0,0.01029127]
[1741936901097,0.012163,82215.0,82214.0,0.01029127]
[1741936901316,0.012163,82215.0,82214.0,0.01129127]
[1741936902344,0.012163,82215.0,82214.0,0.01029127]
[1741936902754,0.03123534,82215.0,82214.0,0.00929127]
[1741936903177,0.03123534,82215.0,82214.0,0.01029127]
[1741936903357,0.03123534,82215.0,82214.0,0.01129127]
[1741936903580,0.03123534,82215.0,82214.0,0.01029127]
[1741936904015,0.03123534,82215.0,82214.0,0.01129127]
[1741936905545,0.01907234,82215.0,82214.0,0.10275427]
[1741936905831,0.01907234,82215.0,82214.0,0.11530262]
[1741936906156,0.01907234,82215.0,82214.0,0.11430262]
[1741936906684,0.01907234,82215.0,82214.0,0.11530262]
[1741936907109,0.01907234,82215.0,82214.0,0.10313962]
[1741936907286,0.03123534,82215.0,82214.0,0.10313962]
[1741936907489,0.03123534,82215.0,82214.0,0.09059127]
[1741936907695,0.3,82228.0,82219.0,0.243251]
[1741936907890,0.3,82228.0,82225.0,0.243232]
[1741936908112,0.13492,82235.0,82229.0,0.243223]
[1741936908321,0.13492,82235.0,82231.0,0.01216]
[1741936908520,0.3,82234.0,82232.0,0.243212]
[1741936908699,0.3,82234.0,82233.0,0.255371]
[1741936908906,0.3,82234.0,82233.0,0.243211]
[1741936909181,0.3,82234.0,82233.0,0.01253994]
[1741936909736,0.3,82234.0,82231.0,0.243215]
[1741936909737,0.14402972,82235.0,82231.0,0.243215]
[1741936909913,0.003,82234.0,82233.0,0.01253994]
[1741936910113,0.001,82234.0,82232.0,0.01254038]
[1741936910311,0.001,82234.0,82230.0,0.255381]
[1741936910312,0.001,82234.0,82233.0,0.01253994]
[1741936910589,0.003,82234.0,82233.0,0.01253994]
[1741936910795,0.02206932,82234.0,82230.0,0.255381]
[1741936911002,0.02206932,82234.0,82233.0,0.01253994]
[1741936911111,0.02206932,82234.0,82230.0,0.255381]
[1741936911313,0.02106932,82234.0,82230.0,0.255381]
[1741936911600,0.02106932,82234.0,82231.0,0.01254083]
[1741936912016,0.26427932,82234.0,82231.0,0.01254083]
[1741936912390,0.26227932,82234.0,82231.0,0.01254083]
[1741936912886,0.27443932,82234.0,82231.0,0.01254083]
[1741936913086,0.01906932,82234.0,82231.0,0.01254083]
[1741936913558,0.01906932,82234.0,82232.0,0.255374]
[1741936913849,0.01906932,82234.0,82232.0,0.26791438]
[1741936914589,0.01906932,82234.0,82232.0,0.02470038]
[1741936914812,0.01906932,82234.0,82232.0,0.01254038]
[1741936915618,0.01906932,82234.0,82232.0,0.25575338]
[1741936916153,0.01906932,82234.0,82233.0,0.01216]
[1741936916530,0.01906932,82234.0,82233.0,0.02471541]
[1741936916730,0.01906932,82234.0,82233.0,0.01255541]
[1741936917784,0.01906932,82234.0,82233.0,0.02471541]
[1741936918784,0.2554971,82247.0,82241.0,0.255346]
[1741936918785,0.0001691,82247.0,82241.0,0.255346]
[1741936918983,0.0001691,82247.0,82241.0,0.335446]
[1741936919337,0.0001691,82247.0,82241.0,0.34799787]
[1741936919970,0.2554981,82247.0,82241.0,0.34799787]
[1741936920170,0.0001691,82247.0,82241.0,0.34799787]
[1741936921289,0.243175,82245.0,82241.0,0.09265187]
[1741936921496,0.012158,82244.0,82241.0,0.09265187]
[1741936921661,0.01923572,82242.0,82241.0,0.01255187]
[1741936922062,0.01923572,82242.0,82238.0,0.012159]
[1741936922236,0.01923572,82242.0,82241.0,0.0125454]
[1741936922444,0.01923572,82242.0,82238.0,0.255354]
[1741936922598,0.01923572,82242.0,82241.0,0.0125454]
[1741936922808,0.01923572,82242.0,82237.0,0.243198]
[1741936923016,0.012159,82243.0,82241.0,0.01262473]
[1741936923201,0.243176,82245.0,82239.0,0.25535]
[1741936923424,0.0190667,82241.0,82240.0,0.243188]
[1741936923624,0.243176,82245.0,82240.0,0.243188]
[1741936923625,0.02030228,82243.0,82240.0,0.012159]
[1741936923850,0.255334,82245.0,82240.0,0.012159]
[1741936924252,0.0001692,82242.0,82239.0,0.25535]
[1741936925384,0.0001692,82242.0,82240.0,0.01262546]
[1741936925586,0.0001692,82242.0,82231.0,0.243215]
[1741936925587,0.012159,82238.0,82231.0,0.243215]
[1741936925732,0.24319,82240.0,82232.0,0.255372]
[1741936926086,0.24319,82240.0,82235.0,0.243203]
[1741936927511,0.2433532,82242.0,82235.0,0.01216]
[1741936927715,0.2433532,82242.0,82238.0,0.243194]
[1741936927911,0.0001692,82242.0,82240.0,0.243188]
[1741936928134,0.0001692,82242.0,82241.0,0.012159]
[1741936928294,0.0001692,82242.0,82241.0,0.093759]
[1741936929689,0.019236,82242.0,82241.0,0.093759]
[1741936940455,0.019236,82242.0,82241.0,0.10509523]
[1741936944415,0.09300646,82254.0,82248.0,0.012158]
[1741936945060,0.11375814,82254.0,82250.0,0.243159]
[1741936945255,0.11375814,82254.0,82249.0,0.02271601]
[1741936946186,0.02075168,82254.0,82251.0,0.243158]
[1741936946344,0.32075168,82254.0,82249.0,0.26587801]
[1741936946533,0.3,82254.0,82252.0,0.01055669]
[1741936946733,0.243152,82253.0,82248.0,0.012158]
[1741936946974,0.255309,82253.0,82248.0,0.012158]
[1741936947313,0.255309,82253.0,82248.0,0.255323]
[1741936947693,0.243156,82252.0,82248.0,0.243165]
[1741936947894,0.24316,82251.0,82246.0,0.255329]
[1741936948398,0.255313,82252.0,82248.0,0.243166]
[1741936948688,0.243156,82252.0,82248.0,0.243166]
[1741936948914,0.27576411,82254.0,82249.0,0.243162]
[1741936949087,0.31906498,82252.0,82248.0,0.255324]
[1741936949701,0.31906498,82252.0,82249.0,0.243162]
[1741936949870,0.31906498,82252.0,82248.0,0.255324]
[1741936950418,0.31906498,82252.0,82248.0,0.355324]
[1741936950934,0.01906498,82252.0,82249.0,0.255319]
[1741936951242,0.01906498,82252.0,82251.0,0.012157]
[1741936955376,0.01906498,82252.0,82251.0,0.02270795]
[1741936960901,0.01906498,82252.0,82251.0,0.02304615]
[1741936962858,0.01906498,82252.0,82251.0,0.09814615]
[1741936964250,0.0001691,82254.0,82253.0,0.012157]
[1741936964449,0.0001691,82254.0,82253.0,0.02392729]
[1741936966205,0.02137566,82254.0,82253.0,0.02392729]
[1741936966332,0.243115,82266.0,82262.0,0.243125]
[1741936966733,0.264388,82267.0,82263.0,0.01224966]
[1741936967161,0.264388,82267.0,82262.0,0.243125]
[1741936967480,0.26479783,82267.0,82263.0,0.01224966]
[1741936967646,0.28386071,82267.0,82262.0,0.243125]
[1741936967842,0.28386071,82267.0,82263.0,0.25537066]
[1741936968435,0.28386071,82267.0,82263.0,0.01224966]
[1741936968637,0.28386071,82267.0,82262.0,0.243125]
[1741936968939,0.30477127,82267.0,82263.0,0.01224966]
[1741936969141,0.29565127,82267.0,82263.0,0.01224966]
[1741936969342,0.29565127,82267.0,82262.0,0.243125]
[1741936969544,0.3,82266.0,82265.0,0.243116]
[1741936969745,0.3,82266.0,82265.0,0.255271]
[1741936969979,0.34038327,82267.0,82265.0,0.01224856]
[1741936970287,0.34038327,82267.0,82262.0,0.243125]
[1741936970565,0.34038327,82267.0,82263.0,0.01224966]
[1741936971043,0.58349527,82267.0,82264.0,0.01224911]
[1741936971246,0.243115,82266.0,82261.0,0.088356]
[1741936971406,0.243115,82266.0,82262.0,0.01225022]
[1741936971805,0.3,82264.0,82262.0,0.01225022]
[1741936972378,0.543122,82263.0,82262.0,0.01225022]
[1741936972563,0.555278,82263.0,82262.0,0.01225022]
[1741936972801,0.3,82260.0,82256.0,0.32264]
[1741936973156,0.3,82260.0,82257.0,0.255294]
[1741936973351,0.3,82260.0,82259.0,0.012156]
[1741936974263,0.377989,82268.0,82263.0,0.012156]
[1741936974264,0.3,82264.0,82263.0,0.012156]
[1741936974461,0.3,82264.0,82261.0,0.012156]
[1741936974665,0.3,82264.0,82262.0,0.243124]
[1741936974957,0.3,82264.0,82261.0,0.012156]
[1741936975620,0.243118,82265.0,82261.0,0.012156]
[1741936975727,0.243118,82265.0,82260.0,0.255287]
[1741936975728,0.255273,82265.0,82260.0,0.255287]
[1741936976947,0.255273,82265.0,82260.0,0.012156]
[1741936977912,0.255273,82265.0,82260.0,0.255285]
[1741936979347,0.255273,82265.0,82259.0,0.25529]
[1741936979348,0.255277,82264.0,82259.0,0.25529]
[1741936979520,0.243124,82263.0,82257.0,0.255295]
[1741936979846,0.243124,82263.0,82258.0,0.243135]
[1741936980250,0.243124,82263.0,82259.0,0.243132]
[1741936980663,0.3,82262.0,82259.0,0.255288]
[1741936982265,0.555276,82264.0,82259.0,0.255288]
[1741936982844,0.012156,82263.0,82257.0,0.012157]
[1741936983045,0.243125,82262.0,82257.0,0.012157]
[1741936983447,0.243119,82264.0,82259.0,0.243132]
[1741936983644,0.255274,82264.0,82259.0,0.243132]
[1741936983870,0.3,82262.0,82259.0,0.255288]
[1741936984249,0.3,82262.0,82259.0,0.243132]
[1741936984454,0.3,82262.0,82260.0,0.243129]
[1741936984732,0.3,82262.0,82260.0,0.255285]
[1741936984933,0.3,82265.0,82262.0,0.243125]
[1741936985378,0.555274,82265.0,82260.0,0.255285]
[1741936985585,0.555274,82265.0,82263.0,0.01228437]
[1741936985791,0.243121,82264.0,82260.0,0.255285]
[1741936986193,0.3,82262.0,82260.0,0.255285]
[1741936986398,0.243121,82264.0,82260.0,0.255285]
[1741936986878,0.012156,82260.0,82259.0,0.0003382]
[1741936987234,0.1258019,82260.0,82259.0,0.0003382]
[1741936988208,0.012156,82260.0,82259.0,0.0003382]
[1741936988628,0.555286,82261.0,82259.0,0.2003382]
[1741936988885,0.012156,82260.0,82259.0,0.2003382]
[1741936989586,0.255274,82265.0,82259.0,0.2003382]
[1741936989744,0.3,82262.0,82259.0,0.2003382]
[1741936989970,0.243128,82261.0,82259.0,0.2003382]
[1741936990173,0.002,82260.0,82259.0,0.2003382]
[1741936990690,0.014156,82260.0,82259.0,0.2003382]
[1741936991094,0.012156,82260.0,82259.0,0.2003382]
[1741936991520,0.014156,82260.0,82259.0,0.2003382]
[1741936992313,0.016156,82260.0,82259.0,0.2003382]
[1741936994391,0.004,82260.0,82259.0,0.2003382]
[1741936994564,0.004,82260.0,82259.0,0.21471672]
[1741936995596,0.004,82260.0,82259.0,0.22687272]
[1741936996303,0.004,82260.0,82259.0,0.30197272]
[1741936997771,0.004,82260.0,82259.0,0.28981672]
[1741936998427,0.004,82260.0,82259.0,0.28406531]
[1741936998654,0.004,82260.0,82259.0,0.29622131]
[1741936999791,0.002,82260.0,82259.0,0.29622131]
[1741937000211,0.004,82260.0,82259.0,0.29622131]
[1741937000393,0.0001691,82264.0,82263.0,0.012156]
[1741937000890,0.0001691,82275.0,82274.0,0.012154]
[1741937001110,0.0001691,82275.0,82274.0,0.095254]
[1741937001111,0.00028865,82275.0,82274.0,0.095254]
[1741937001312,0.00028865,82275.0,82274.0,0.1038697]
[1741937001512,0.01934905,82275.0,82274.0,0.1018697]
[1741937002148,0.01934905,82275.0,82274.0,0.1076135]
[1741937002346,0.01934905,82275.0,82274.0,0.10185566]
[1741937002751,0.04506523,82275.0,82274.0,0.09170166]
[1741937003158,0.01934905,82275.0,82274.0,0.09070166]
[1741937003726,0.02134905,82275.0,82274.0,0.09070166]
[1741937003920,0.02034905,82275.0,82274.0,0.10285566]
[1741937004128,0.02134905,82275.0,82274.0,0.10285566]
[1741937004333,0.02234905,82275.0,82274.0,0.10285566]
[1741937005370,0.02234905,82275.0,82274.0,0.30285566]
[1741937005868,0.02234905,82275.0,82274.0,0.29070166]
[1741937006800,0.02874878,82275.0,82274.0,0.30285566]
[1741937007006,0.00328865,82275.0,82274.0,0.30285566]
[1741937007680,0.00228865,82275.0,82274.0,0.30285566]
[1741937007894,0.00128865,82275.0,82274.0,0.30285566]
[1741937008073,0.00028865,82275.0,82274.0,0.30385566]
[1741937009512,0.00028865,82275.0,82274.0,0.30585566]
[1741937009668,0.00028865,82275.0,82274.0,0.30885566]
[1741937010265,0.01934696,82275.0,82274.0,0.30885566]
[1741937010595,0.01934696,82275.0,82274.0,0.33306515]
[1741937010794,0.01934696,82275.0,82274.0,0.30885566]
[1741937022668,0.01934696,82275.0,82274.0,0.30919386]
[1741937039674,0.01934696,82275.0,82274.0,0.21493986]
[1741937039840,0.03150096,82275.0,82274.0,0.21493986]
[1741937040368,0.01934696,82275.0,82274.0,0.21493986]
[1741937040595,0.01934696,82275.0,82274.0,0.22709386]
[1741937044400,0.24282049,82283.0,82274.0,0.22709386]
[1741937044599,0.243074,82280.0,82275.0,0.243087]
[1741937044994,0.243074,82280.0,82276.0,0.00958978]
[1741937045647,0.255224,82281.0,82276.0,0.00958978]
[1741937045876,0.243078,82278.0,82276.0,0.00958978]
[1741937046055,0.243078,82278.0,82274.0,0.2033382]
[1741937046556,0.243078,82278.0,82274.0,0.2003382]
[1741937046787,0.255224,82281.0,82275.0,0.00959033]
[1741937046968,0.255224,82281.0,82276.0,0.243083]
[1741937047171,0.012153,82281.0,82276.0,0.255237]
[1741937047385,0.255224,82281.0,82277.0,0.00958923]
[1741937047562,0.243066,82282.0,82277.0,0.00958923]
[1741937047761,0.01905847,82280.0,82277.0,0.00958923]
[1741937050004,0.01905847,82280.0,82277.0,0.01058923]
[1741937050650,0.26213147,82280.0,82277.0,0.01158923]
[1741937051496,0.243076,82279.0,82277.0,0.01158923]
[1741937051705,0.21243769,82282.0,82277.0,0.01158923]
[1741937052103,0.01905808,82279.0,82277.0,0.01158923]
[1741937052326,0.27428808,82279.0,82277.0,0.01158923]
[1741937052825,0.01905808,82279.0,82277.0,0.01158923]
[1741937053041,0.01905808,82279.0,82277.0,0.01058923]
[1741937053415,0.01905808,82279.0,82277.0,0.01258923]
[1741937053620,0.01905808,82279.0,82277.0,0.01158923]
[1741937054034,0.01905808,82279.0,82277.0,0.01358923]
[1741937055174,0.243074,82280.0,82277.0,0.01358923]
[1741937055638,0.255223,82281.0,82277.0,0.25667023]
[1741937055816,0.255223,82281.0,82277.0,0.01358923]
[1741937056400,0.255223,82281.0,82277.0,0.01158923]
[1741937056603,0.255223,82281.0,82277.0,0.01258923]
[1741937056911,0.255223,82281.0,82277.0,0.00958923]
[1741937057117,0.243073,82280.0,82277.0,0.01058923]
[1741937057318,0.0001691,82279.0,82277.0,0.01058923]
[1741937057493,0.0001691,82279.0,82277.0,0.00958923]
[1741937057673,0.0001691,82279.0,82275.0,0.25524]
[1741937057902,0.0001691,82279.0,82278.0,0.00958665]
[1741937058109,0.0001691,82279.0,82277.0,0.001]
[1741937058304,0.0001691,82279.0,82278.0,0.00958665]
[1741937058511,0.0001691,82279.0,82275.0,0.25524]
[1741937058512,0.0001691,82279.0,82277.0,0.002]
[1741937058721,0.0001691,82279.0,82278.0,0.00958665]
[1741937059662,0.01922701,82279.0,82278.0,0.00958665]
[1741937060310,0.01922701,82279.0,82278.0,0.01358665]
[1741937060479,0.01922701,82279.0,82278.0,0.004]
[1741937060957,0.01922701,82279.0,82278.0,0.01358269]
[1741937061168,0.01922701,82279.0,82278.0,0.004]
[1741937061349,0.01922701,82279.0,82278.0,0.01358269]
[1741937061748,0.40330098,82279.0,82278.0,0.01358269]
[1741937061952,0.41545398,82279.0,82278.0,0.004]
[1741937062955,0.012154,82275.0,82274.0,0.2003382]
[1741937063163,0.255241,82275.0,82274.0,0.2003382]
[1741937064113,0.256241,82275.0,82274.0,0.2003382]
[1741937066024,0.257241,82275.0,82274.0,0.2003382]
[1741937067326,0.002,82275.0,82274.0,0.2775382]
[1741937067649,0.002,82275.0,82274.0,0.28877688]
[1741937067809,0.014154,82275.0,82274.0,0.28877688]
[1741937068670,0.013154,82275.0,82274.0,0.28877688]
[1741937068974,0.001,82275.0,82274.0,0.28877688]
[1741937069306,0.3,82276.0,82274.0,0.28877688]
[1741937069424,0.001,82275.0,82274.0,0.28877688]
[1741937070026,0.002,82275.0,82274.0,0.28877688]
[1741937070730,0.001,82275.0,82274.0,0.28877688]
[1741937071255,0.002,82275.0,82274.0,0.28877688]
[1741937071636,0.001,82275.0,82274.0,0.28877688]
[1741937072759,0.255239,82276.0,82274.0,0.28877688]
[1741937073042,0.012154,82275.0,82274.0,0.28877688]
[1741937074944,0.012154,82275.0,82274.0,0.2775382]
[1741937075148,0.012154,82275.0,82274.0,0.28878499]
[1741937075358,0.0930776,82275.0,82274.0,0.21158499]
[1741937076057,0.012154,82275.0,82274.0,0.21158499]
[1741937079164,0.01922701,82279.0,82275.0,0.012154]
[1741937079274,0.0001691,82279.0,82275.0,0.012154]
[1741937079468,0.0001691,82279.0,82274.0,0.29038499]
[1741937079731,0.0001691,82279.0,82276.0,0.01168819]
[1741937079938,0.243078,82278.0,82275.0,0.01168893]
[1741937080169,0.243078,82278.0,82274.0,0.2791382]
[1741937080371,0.0001691,82279.0,82278.0,0.382931]
[1741937080578,0.0011691,82279.0,82278.0,0.382931]
[1741937080778,0.0011691,82279.0,82278.0,0.3950515]
[1741937081156,0.18900228,82296.0,82288.0,0.255198]
[1741937081292,0.012151,82296.0,82289.0,0.0751]
[1741937081500,0.255194,82290.0,82289.0,0.0741]
[1741937081924,0.012153,82284.0,82278.0,0.0464]
[1741937082124,0.0001691,82282.0,82278.0,0.0504]
[1741937082338,0.2432381,82282.0,82278.0,0.0504]
[1741937083173,0.0001691,82282.0,82279.0,0.255226]
[1741937083318,0.0001691,82282.0,82281.0,0.243069]
[1741937083525,0.0001691,82282.0,82281.0,0.255222]
[1741937084372,0.0001691,82282.0,82279.0,0.245075]
[1741937084624,0.0001691,82282.0,82280.0,0.321969]
[1741937084993,0.0001691,82282.0,82281.0,0.003]
[1741937085193,0.0001691,82282.0,82281.0,0.006]
[1741937085374,0.0001691,82282.0,82281.0,0.003]
[1741937086904,0.0001691,82282.0,82280.0,0.0789]
[1741937088196,0.0001691,82282.0,82281.0,0.003]
[1741937088545,0.0001691,82282.0,82280.0,0.0789]
[1741937088679,0.0001691,82282.0,82280.0,0.0819]
[1741937090214,0.243069,82281.0,82280.0,0.0789]
[1741937090460,0.24296824,82281.0,82280.0,0.0789]
[1741937090625,0.24296824,82281.0,82280.0,0.0829]
[1741937091124,0.26202457,82281.0,82280.0,0.0829]
[1741937091325,0.26202457,82281.0,82280.0,0.0819]
[1741937091525,0.26202457,82281.0,82280.0,0.0859]
[1741937091748,0.26202457,82281.0,82280.0,0.0829]
[1741937091953,0.26202457,82281.0,82280.0,0.0859]
[1741937092595,0.27417757,82281.0,82280.0,0.007]
[1741937092891,0.55512124,82281.0,82280.0,0.007]
[1741937093145,0.55512124,82281.0,82280.0,0.207]
[1741937093717,0.55512124,82281.0,82280.0,0.204]
[1741937094123,0.55512124,82281.0,82280.0,0.2]
[1741937094489,0.67608213,82281.0,82280.0,0.2]
[1741937098625,0.55612124,82281.0,82280.0,0.2]
[1741937099629,0.55612124,82281.0,82280.0,0.183]
[1741937101138,0.001,82281.0,82280.0,0.508972]
[1741937101340,0.001,82281.0,82280.0,0.52109816]
[1741937101690,0.243069,82281.0,82280.0,0.27802616]
[1741937102042,0.001,82281.0,82280.0,0.27802616]
[1741937102239,0.244069,82281.0,82280.0,0.27802616]
[1741937102462,0.243069,82281.0,82280.0,0.27802616]
[1741937102703,0.255222,82281.0,82280.0,0.27802616]
[1741937103390,0.255222,82281.0,82280.0,0.27902616]
[1741937103779,0.255222,82281.0,82280.0,0.28002616]
[1741937104499,0.243069,82281.0,82280.0,0.28002616]
[1741937104878,0.0001691,82282.0,82281.0,0.255222]
[1741937105063,0.0001691,82282.0,82281.0,0.332422]
[1741937105263,0.0001691,82282.0,82281.0,0.3445113]
[1741937108264,0.2553881,82282.0,82281.0,0.0120893]
[1741937108473,0.33387481,82282.0,82281.0,0.0120893]
[1741937108693,0.33387481,82282.0,82280.0,0.1833384]
[1741937108894,0.0001691,82282.0,82281.0,0.243069]
[1741937109304,0.255222,82281.0,82280.0,0.1833384]
[1741937111135,0.255222,82281.0,82280.0,0.1843384]
[1741937111355,0.255222,82281.0,82280.0,0.1853384]
[1741937112322,0.255222,82281.0,82280.0,0.1843384]
[1741937112524,0.255222,82281.0,82280.0,0.1833384]
[1741937113736,0.256222,82281.0,82280.0,0.1833384]
[1741937115032,0.27527947,82281.0,82280.0,0.1833384]
[1741937116248,0.256222,82281.0,82280.0,0.1833384]
[1741937116571,0.256222,82281.0,82280.0,0.19538677]
[1741937118275,0.255222,82281.0,82280.0,0.19538677]
[1741937118431,0.255222,82281.0,82280.0,0.1833384]
[1741937118595,0.256222,82281.0,82280.0,0.1833384]
[1741937119004,0.2563912,82281.0,82280.0,0.1833384]
[1741937119204,0.27544848,82281.0,82280.0,0.1833384]
[1741937119926,0.27444848,82281.0,82280.0,0.1833384]
[1741937120201,0.27444848,82281.0,82280.0,0.19540065]
[1741937120383,0.27544848,82281.0,82280.0,0.19540065]
[1741937127486,0.66526874,82281.0,82280.0,0.19540065]
[1741937127974,0.66526874,82281.0,82280.0,0.1833384]
[1741937128107,0.64621146,82281.0,82280.0,0.1833384]
[1741937129982,0.5563912,82281.0,82280.0,0.1833384]
[1741937130790,0.57544992,82281.0,82280.0,0.1833384]
[1741937132406,0.57544992,82281.0,82280.0,0.2629384]
[1741937147226,0.57544992,82281.0,82280.0,0.1833384]
[1741937150021,0.24764951,82281.0,82280.0,0.1833384]
[1741937150249,0.27428072,82281.0,82280.0,0.1833384]
[1741937153246,0.01905872,82281.0,82280.0,0.1833384]
[1741937153416,0.27428072,82281.0,82280.0,0.27103482]
[1741937153941,0.26212772,82281.0,82280.0,0.27103482]
[1741937154377,0.3432361,82282.0,82280.0,0.27103482]
[1741937154534,0.3,82281.0,82280.0,0.27103482]
[1741937154711,0.312153,82281.0,82280.0,0.27103482]
[1741937154916,0.5553912,82281.0,82280.0,0.27103482]
[1741937155509,0.5553912,82281.0,82280.0,0.2589384]
[1741937155778,0.5553912,82281.0,82280.0,0.27102205]
[1741937156692,0.5553912,82281.0,82280.0,0.2589384]
[1741937157030,0.5553912,82281.0,82280.0,0.27102205]
[1741937157230,0.57444906,82281.0,82280.0,0.2589384]
[1741937157924,0.57444906,82281.0,82280.0,0.27102205]
[1741937158167,0.57444906,82281.0,82280.0,0.2589384]
[1741937160701,0.57444906,82281.0,82280.0,0.27102205]
[1741937161102,0.57444906,82281.0,82280.0,0.2589384]
[1741937163111,0.36695846,82281.0,82280.0,0.27102205]
[1741937163679,0.27444906,82281.0,82280.0,0.2589384]
[1741937163885,0.01922706,82281.0,82280.0,0.2589384]
[1741937164096,0.01922706,82281.0,82280.0,0.57254705]
[1741937164269,0.0001692,82281.0,82280.0,0.57254705]
[1741937165199,0.0001692,82281.0,82280.0,0.57654705]
[1741937166661,0.0001692,82281.0,82280.0,0.57954705]
[1741937168267,0.0001692,82281.0,82280.0,0.56739405]
[1741937168697,0.0001692,82281.0,82280.0,0.57954705]
[1741937172713,0.2553912,82281.0,82280.0,0.27802205]
[1741937172915,0.2553912,82281.0,82280.0,0.20242205]
[1741937173116,0.5553912,82281.0,82280.0,0.20242205]
[1741937173314,0.67535209,82281.0,82280.0,0.1903384]
[1741937173937,0.67535209,82281.0,82280.0,0.1873384]
[1741937174368,0.555228,82279.0,82278.0,6e-07]
[1741937174599,0.67518889,82279.0,82278.0,6e-07]
[1741937175654,0.74082974,82279.0,82278.0,6e-07]
[1741937175860,0.555287,82260.0,82251.0,0.0003382]
[1741937176044,0.690047,82260.0,82251.0,0.0003382]
[1741937177271,0.737247,82260.0,82251.0,0.0003382]
[1741937177893,0.738247,82260.0,82251.0,0.0003382]
[1741937178478,0.75830996,82260.0,82251.0,0.0003382]
[1741937179284,0.74615396,82260.0,82251.0,0.0003382]
[1741937179489,0.45582296,82260.0,82251.0,0.0003382]
[1741937179723,0.57578385,82260.0,82259.0,0.2434722]
[1741937179932,0.57578385,82260.0,82259.0,0.0003382]
[1741937180160,0.57578385,82260.0,82259.0,0.01258911]
[1741937180360,0.45582296,82260.0,82259.0,0.2434722]
[1741937180512,0.32106296,82260.0,82259.0,0.25572311]
[1741937180832,0.45582296,82260.0,82259.0,0.25572311]
[1741937181534,0.45582296,82260.0,82259.0,0.23372311]
[1741937182243,0.45482296,82260.0,82259.0,0.23372311]
[1741937183038,0.45386296,82260.0,82259.0,0.23372311]
[1741937184996,0.45386296,82260.0,82259.0,0.24587911]
[1741937185164,0.01906296,82260.0,82259.0,0.24587911]
[1741937186435,0.1348,82273.0,82272.0,0.243096]
[1741937187009,0.1348,82273.0,82272.0,0.25530848]
[1741937187215,0.4348,82273.0,82272.0,0.25530848]
[1741937188447,0.4358,82273.0,82272.0,0.25530848]
[1741937189005,0.4348,82273.0,82272.0,0.25530848]
[1741937189466,0.45385979,82273.0,82272.0,0.25530848]
[1741937190877,0.45385979,82273.0,82272.0,0.25564688]
[1741937203661,0.45402899,82273.0,82272.0,0.25564688]
[1741937204500,0.45402899,82273.0,82272.0,0.34820088]
[1741937204701,0.45402899,82273.0,82272.0,0.33604688]
[1741937205103,0.31922899,82273.0,82272.0,0.33604688]
[1741937205314,0.01922899,82273.0,82272.0,0.34820088]
[1741937205519,0.0001692,82273.0,82272.0,0.34820088]
[1741937206978,0.0001692,82273.0,82272.0,0.34920088]
[1741937207884,0.0001692,82273.0,82272.0,0.35020088]
[1741937208444,0.01922698,82273.0,82272.0,0.35020088]
[1741937211165,0.01922698,82273.0,82272.0,0.39800088]
[1741937211357,0.01922698,82273.0,82272.0,0.39600088]